[Event "71st MNE-ch 2019"]
[Site "Podgorica"]
[Date "2019.05.22"]
[Round "5"]
[White "Abramovic, Dragoljub"]
[Black "Pobor, Milo"]
[Result "0-1"]
[ECO "D02"]
[WhiteElo "2063"]
[BlackElo "1960"]
[Annotator "NA RC"]
[PlyCount "58"]
[EventDate "2019.05.18"]
[EventType "swiss"]
[EventCountry "MNE"]
[SourceTitle "playchess.com"]
[Source "ChessBase"]
[SourceQuality "1"]
[TimeControl "40/5400+30:1800+30"]

1. d4 d5 2. Nf3 Nf6 3. Bf4 c5 4. e3 Nc6 5. c3 Qb6 6. Qc1 Bf5 7. Nbd2 e6 8. Be2 c4 9. O-O Qa5 10. Ne5 Nxe5 11. Bxe5 Nd7 12. g4 Bg6 13. Bg3 b5 14. b3 Ba3 15. Qe1 Bb2 16. f4 Bc2 17. b4 Qa3 18. Nb1 Qa4 19. Nd2 Bxc3 20. a3 a5 21. e4 axb4 22. exd5 Bxa1 23. dxe6 Bxd4+ 24. Kg2 O-O 25. exd7 bxa3 26. Nf3 Be4 27. Bd1 Bxf3+ 28. Bxf3 a2 29. Bxa8 Qxa8+ 0-1

[Event "71st MNE-ch 2019"]
[Site "Podgorica"]
[Date "2019.05.22"]
[Round "5"]
[White "Vujovic, Savo"]
[Black "Popadic, Dragan"]
[Result "1-0"]
[ECO "B30"]
[WhiteElo "1940"]
[BlackElo "2198"]
[Annotator "RC"]
[PlyCount "109"]
[EventDate "2019.05.18"]
[EventType "swiss"]
[EventCountry "MNE"]
[SourceTitle "playchess.com"]
[Source "ChessBase"]
[SourceQuality "1"]
[TimeControl "40/5400+30:1800+30"]

1. e4 {[%emt 0:00:33]} c5 {[%emt 0:00:00]} 2. Nf3 {[%emt 0:00:03]} Nc6 {[%emt 0:00:00]} 3. Bb5 {[%emt 0:00:04]} e5 {[%emt 0:00:53]} 4. O-O {[%emt 0:00:59]} d6 {[%emt 0:00:26]} 5. c3 {[%emt 0:03:20]} Bd7 {[%emt 0:00:41]} 6. d4 {[%emt 0:04:06]} Qc7 {[%emt 0:01:23]} 7. Na3 {[%emt 0:00:44]} a6 {[%emt 0:03:39]} 8. Bxc6 {[%emt 0:05:19]} Bxc6 {[%emt 0:00:23]} 9. d5 {[%emt 0:01:17]} Bd7 {[%emt 0:00:27]} 10. Nd2 {[%emt 0:04:35]} Be7 {[%emt 0:04:58]} 11. Re1 {[%emt 0:06:38]} Nf6 {[%emt 0:04:42]} 12. Nf1 {[%emt 0:00:31]} O-O {[%emt 0:01:15]} 13. Ng3 {[%emt 0:04:29]} Rae8 {[%emt 0:08:20]} 14. Nc2 {[%emt 0:05:17]} Kh8 {[%emt 0:04:21]} 15. a4 {[%emt 0:08:23]} Ng8 {[%emt 0:02:27]} 16. f4 {[%emt 0:03:37]} exf4 {[%emt 0:02:29]} 17. Bxf4 {[%emt 0:00:14]} Bf6 {[%emt 0:01:58]} 18. Rf1 {[%emt 0:07:56]} Be5 {[%emt 0:02:41]} 19. Ne3 {[%emt 0:03:10]} f6 {[%emt 0:08:03]} 20. Bxe5 {[%emt 0:08:00]} Rxe5 {[%emt 0:01:27]} 21. Qf3 {[%emt 0:08:12]} Nh6 {[%emt 0:02:30]} 22. Nc4 {[%emt 0:05:37]} Rg5 {[%emt 0:04:20]} 23. h4 {[%emt 0:01:15]} Rg4 {[%emt 0:01:20]} 24. h5 {[%emt 0:02:10]} Re8 {[%emt 0:01:11]} 25. Ne3 {[%emt 0:02:22]} Rh4 {[%emt 0:02:11]} 26. b3 {[%emt 0:01:29]} Qd8 {[%emt 0:01:45]} 27. Rae1 {[%emt 0:02:02]} Qe7 {[%emt 0:01:06]} 28. Qf2 {[%emt 0:02:26]} Ng4 {[%emt 0:03:05]} 29. Nxg4 {[%emt 0:00:02]} Rxg4 {[%emt 0:00:39]} 30. h6 {[%emt 0:00:34]} g6 {[%emt 0:12:12]} 31. Qxf6+ {[%emt 0:00:41]} Qxf6 {[%emt 0:00:38]} 32. Rxf6 {[%emt 0:00:04]} Rxg3 {[%emt 0:00:37]} 33. Rf7 {[%emt 0:00:44]} Bh3 {[%emt 0:09:18]} 34. Kh2 {[%emt 0:00:10]} Rxg2+ {[%emt 0:01:10]} 35. Kxh3 {[%emt 0:00:07]} Rg5 {[%emt 0:00:10]} 36. Rxb7 {[%emt 0:00:54]} Rh5+ {[%emt 0:00:37]} 37. Kg3 {[%emt 0:00:29]} Rxh6 {[%emt 0:01:41]} 38. e5 {[%emt 0:01:40]} Rh5 {[%emt 0:01:42]} 39. Rb6 {[%emt 0:02:39]} Rhxe5 {[%emt 0:01:26]} 40. Rxe5 {[%emt 0:00:00]} dxe5 {[%emt 0:00:00]} 41. Rxa6 {[%emt 0:04:06]} Rb8 {[%emt 0:04:10]} 42. d6 {[%emt 0:00:35]} Kg7 {[%emt 0:00:43]} 43. Ra7+ {[%emt 0:09:02]} Kf6 {[%emt 0:01:33]} 44. Rxh7 {[%emt 0:01:15]} Rxb3 {[%emt 0:00:19]} 45. d7 {[%emt 0:00:20]} Rxc3+ {[%emt 0:00:04]} 46. Kf2 {[%emt 0:00:07]} Rd3 {[%emt 0:00:09]} 47. a5 {[%emt 0:00:12]} c4 {[%emt 0:00:06]} 48. a6 {[%emt 0:00:13]} c3 {[%emt 0:00:28]} 49. a7 {[%emt 0:01:02]} c2 {[%emt 0:00:12]} 50. a8=Q {[%emt 0:01:28]} Rd2+ {[%emt 0:01:03]} 51. Ke3 {[%emt 0:01:11]} c1=Q {[%emt 0:00:10]} 52. Qf3+ {[%emt 0:01:14]} Kg5 {[%emt 0:00:27]} 53. Qg3+ {[%emt 0:00:36]} Kf5 {[%emt 0:01:31]} 54. Rf7+ {[%emt 0:00:16]} Ke6 {[%emt 0:00:23]} 55. Qxg6+ {[%emt 0:00:08]} 1-0

[Event "71st MNE-ch 2019"]
[Site "Podgorica"]
[Date "2019.05.22"]
[Round "5"]
[White "Bacic, Kristina"]
[Black "Rakic, Tijana"]
[Result "0-1"]
[ECO "A00"]
[WhiteElo "1819"]
[BlackElo "1579"]
[Annotator "NA RC"]
[PlyCount "116"]
[EventDate "2019.05.18"]
[EventType "swiss"]
[EventCountry "MNE"]
[SourceTitle "playchess.com"]
[Source "ChessBase"]
[SourceQuality "1"]
[TimeControl "40/5400+30:1800+30"]

1. g3 c5 2. Bg2 Nc6 3. Nf3 e5 4. d3 g6 5. O-O Bg7 6. c4 Nge7 7. Nc3 O-O 8. Ne1 d6 9. Nc2 Be6 10. Ne3 Qd7 11. Ned5 f5 12. Qa4 {[%emt 0:35:02]} Nc8 {[%emt 0:26:27]} 13. Rb1 {[%emt 0:10:48]} Nb6 {[%emt 0:02:59]} 14. Qb5 {[%emt 0:04:32]} Nd4 {[%emt 0:08:49]} 15. Qxd7 {[%emt 0:01:26]} Bxd7 {[%emt 0:02:14]} 16. Nxb6 {[%emt 0:00:49]} axb6 {[%emt 0:00:05]} 17. Bxb7 {[%emt 0:00:13]} Rab8 {[%emt 0:04:40]} 18. Bd5+ {[%emt 0:01:07]} Kh8 {[%emt 0:00:37]} 19. Bd2 {[%emt 0:14:34]} b5 {[%emt 0:05:39]} 20. e3 {[%emt 0:02:30]} b4 {[%emt 0:00:35]} 21. exd4 {[%emt 0:01:30]} bxc3 {[%emt 0:00:18]} 22. Bxc3 {[%emt 0:04:22]} exd4 {[%emt 0:01:02]} 23. Ba5 {[%emt 0:00:13]} Rbe8 {[%emt 0:03:35]} 24. Bc7 {[%emt 0:03:21]} Rf6 {[%emt 0:00:27]} 25. Rfe1 {[%emt 0:01:00]} Rc8 {[%emt 0:00:48]} 26. Bb6 {[%emt 0:08:05]} f4 {[%emt 0:02:56]} 27. Be4 {[%emt 0:06:26]} d5 {[%emt 0:01:09]} 28. Bxc5 {[%emt 0:01:45]} fxg3 {[%emt 0:02:13]} 29. Bxd4 {[%emt 0:03:50]} gxf2+ {[%emt 0:00:25]} 30. Bxf2 {[%emt 0:00:04]} dxe4 {[%emt 0:00:21]} 31. Rxe4 {[%emt 0:02:32]} Bf5 {[%emt 0:01:59]} 32. Re3 {[%emt 0:00:35]} Rd6 {[%emt 0:00:20]} 33. Rbe1 {[%emt 0:00:20]} Bxb2 {[%emt 0:01:21]} 34. Re8+ {[%emt 0:00:56]} Rxe8 {[%emt 0:00:14]} 35. Rxe8+ {[%emt 0:00:03]} Kg7 {[%emt 0:00:13]} 36. Rb8 {[%emt 0:01:14]} Bd4 {[%emt 0:02:15]} 37. Rb7+ {[%emt 0:00:26]} Kh6 {[%emt 0:00:16]} 38. c5 {[%emt 0:00:38]} Bxf2+ {[%emt 0:00:36]} 39. Kxf2 {[%emt 0:00:02]} Rxd3 {[%emt 0:00:09]} 40. a4 {[%emt 0:00:00]} Ra3 {[%emt 0:00:00]} 41. Rb4 {[%emt 0:00:48]} Bd7 {[%emt 0:03:17]} 42. Rb7 {[%emt 0:03:29]} Bxa4 {[%emt 0:04:15]} 43. Ra7 {[%emt 0:00:09]} Ra2+ {[%emt 0:00:18]} 44. Kg3 {[%emt 0:00:07]} Bb3 {[%emt 0:00:18]} 45. Rb7 {[%emt 0:00:08]} Bd5 {[%emt 0:00:20]} 46. Rd7 {[%emt 0:00:31]} Be6 {[%emt 0:02:43]} 47. Rd6 {[%emt 0:00:54]} Bf5 {[%emt 0:00:08]} 48. Rd4 {[%emt 0:04:09]} Rc2 {[%emt 0:00:51]} 49. Rd5 {[%emt 0:00:07]} Rc4 {[%emt 0:02:34]} 50. Re5 {[%emt 0:02:27]} Kg5 {[%emt 0:00:57]} 51. Re7 {[%emt 0:00:42]} h5 {[%emt 0:00:40]} 52. Rc7 {[%emt 0:00:24]} Rc3+ {[%emt 0:00:30]} 53. Kf2 {[%emt 0:00:08]} Kf4 {[%emt 0:00:53]} 54. c6 {[%emt 0:01:08]} Rc2+ {[%emt 0:00:26]} 55. Ke1 {[%emt 0:01:15]} Rxh2 {[%emt 0:00:49]} 56. Rf7 {[%emt 0:00:10]} Rc2 {[%emt 0:00:49]} 57. c7 {[%emt 0:00:10]} Ke5 {[%emt 0:00:57]} 58. Kd1 {[%emt 0:00:40]} Rc6 {[%emt 0:00:38]} 0-1

[Event "71st MNE-ch 2019"]
[Site "Podgorica"]
[Date "2019.05.22"]
[Round "5"]
[White "Ljeskovic, Luka"]
[Black "Miletic, Vuk"]
[Result "0-1"]
[ECO "B54"]
[WhiteElo "1710"]
[BlackElo "1954"]
[Annotator "NA RC"]
[PlyCount "78"]
[EventDate "2019.05.18"]
[EventType "swiss"]
[EventCountry "MNE"]
[SourceTitle "playchess.com"]
[Source "ChessBase"]
[SourceQuality "1"]
[TimeControl "40/5400+30:1800+30"]

1. e4 c5 2. Nf3 d6 3. d4 cxd4 4. Nxd4 Nc6 5. Be3 Nf6 6. Nc3 g6 7. f3 Bg7 8. Qd2 O-O 9. h4 h5 10. O-O-O Bd7 11. Be2 Rc8 12. Rdg1 Ne5 {[%emt 0:28:57]} 13. Bh6 {[%emt 0:24:55]} Qb6 {[%emt 0:15:21]} 14. Bxg7 {[%emt 0:00:28]} Kxg7 {[%emt 0:00:49]} 15. Nd5 {[%emt 0:10:38]} Nxd5 {[%emt 0:00:32]} 16. exd5 {[%emt 0:03:05]} Qc5 {[%emt 0:07:02]} 17. g4 {[%emt 0:01:59]} hxg4 {[%emt 0:07:36]} 18. h5 {[%emt 0:01:18]} Rh8 {[%emt 0:09:05]} 19. h6+ {[%emt 0:02:12]} Kh7 {[%emt 0:00:20]} 20. f4 {[%emt 0:02:15]} Nc4 {[%emt 0:07:04]} 21. Qc3 {[%emt 0:03:41]} Nb6 {[%emt 0:02:22]} 22. Ne6 {[%emt 0:02:53]} Qxc3 {[%emt 0:00:19]} 23. Ng5+ Kg8 {[%emt 0:00:04]} 24. bxc3 {[%emt 0:00:22]} f6 {[%emt 0:04:31]} 25. Ne6 {[%emt 0:02:29]} Bxe6 {[%emt 0:01:32]} 26. dxe6 {[%emt 0:00:04]} f5 {[%emt 0:00:37]} 27. Bb5 {[%emt 0:02:04]} Kh7 {[%emt 0:01:24]} 28. Kd2 {[%emt 0:02:16]} Rc5 {[%emt 0:00:48]} 29. Rb1 {[%emt 0:00:16]} Nd5 {[%emt 0:02:35]} 30. Bd7 {[%emt 0:02:08]} b6 {[%emt 0:00:21]} 31. Rb3 {[%emt 0:01:10]} Rb8 {[%emt 0:02:19]} 32. Ra3 {[%emt 0:01:34]} a5 {[%emt 0:00:25]} 33. Rb3 {[%emt 0:00:32]} Nxf4 {[%emt 0:02:16]} 34. Ke3 {[%emt 0:00:06]} Nh5 {[%emt 0:01:33]} 35. Rhb1 {[%emt 0:00:12]} Kxh6 {[%emt 0:02:34]} 36. Rxb6 {[%emt 0:00:05]} Rxb6 {[%emt 0:00:35]} 37. Rxb6 {[%emt 0:00:06]} Rxc3+ {[%emt 0:01:23]} 38. Kd4 {[%emt 0:00:04]} Rxc2 {[%emt 0:00:45]} 39. Rb7 {[%emt 0:00:05]} g3 {[%emt 0:01:18]} 0-1

[Event "71st MNE-ch 2019"]
[Site "Podgorica"]
[Date "2019.05.22"]
[Round "5"]
[White "Sabotic, Denis"]
[Black "Petrovic, Slavko"]
[Result "1/2-1/2"]
[ECO "C62"]
[WhiteElo "1682"]
[BlackElo "1945"]
[Annotator "NA RC"]
[PlyCount "20"]
[EventDate "2019.05.18"]
[EventType "swiss"]
[EventCountry "MNE"]
[SourceTitle "playchess.com"]
[Source "ChessBase"]
[SourceQuality "1"]
[TimeControl "40/5400+30:1800+30"]

1. e4 e5 2. Nf3 Nc6 3. Bb5 d6 4. d4 exd4 5. Nxd4 Qd7 6. O-O Nf6 7. Re1 a6 8. e5 dxe5 9. Bxc6 bxc6 10. Rxe5+ Be7 1/2-1/2

[Event "71st MNE-ch 2019"]
[Site "Podgorica"]
[Date "2019.05.23"]
[Round "6.2"]
[White "Blagojevic, Dragisa"]
[Black "Draskovic, Luka"]
[Result "1-0"]
[ECO "E62"]
[WhiteElo "2499"]
[BlackElo "2430"]
[Annotator "RC"]
[PlyCount "83"]
[EventDate "2019.05.18"]
[EventType "swiss"]
[EventCountry "MNE"]
[SourceTitle "playchess.com"]
[Source "ChessBase"]
[SourceQuality "1"]
[TimeControl "40/5400+30:1800+30"]

1. d4 {[%emt 0:00:00]} Nf6 {[%emt 0:00:00]} 2. c4 {[%emt 0:00:00]} g6 {[%emt 0:00:00]} 3. Nf3 {[%emt 0:00:00]} Bg7 {[%emt 0:00:00]} 4. g3 {[%emt 0:00:00]} O-O {[%emt 0:00:00]} 5. Bg2 {[%emt 0:00:03]} d6 {[%emt 0:00:00]} 6. O-O {[%emt 0:00:14]} Nc6 {[%emt 0:00:03]} 7. Nc3 {[%emt 0:00:17]} e5 {[%emt 0:00:30]} 8. dxe5 {[%emt 0:00:37]} dxe5 {[%emt 0:00:43]} 9. Bg5 {[%emt 0:00:38]} Be6 {[%emt 0:00:13]} 10. Qc1 {[%emt 0:01:28]} Qc8 {[%emt 0:01:08]} 11. Rd1 {[%emt 0:01:01]} Re8 {[%emt 0:01:33]} 12. Ne1 {[%emt 0:08:06]} Nd7 {[%emt 0:05:48]} 13. Bxc6 {[%emt 0:04:17]} bxc6 {[%emt 0:00:05]} 14. b3 {[%emt 0:00:29]} f5 {[%emt 0:12:42]} 15. Bh6 {[%emt 0:03:13]} Bf6 {[%emt 0:09:19]} 16. e4 {[%emt 0:10:17]} f4 {[%emt 0:04:44]} 17. gxf4 {[%emt 0:07:19]} exf4 {[%emt 0:00:24]} 18. Bxf4 {[%emt 0:00:54]} Ne5 {[%emt 0:04:32]} 19. f3 {[%emt 0:07:30]} Bh3 {[%emt 0:07:41]} 20. Qe3 {[%emt 0:04:12]} Qe6 {[%emt 0:04:09]} 21. Rac1 {[%emt 0:05:39]} g5 {[%emt 0:05:08]} 22. Bg3 {[%emt 0:01:11]} Rf8 {[%emt 0:02:11]} 23. Kh1 {[%emt 0:04:01]} Bg7 {[%emt 0:16:21]} 24. Ne2 {[%emt 0:01:13]} Rf7 {[%emt 0:08:02]} 25. Ng1 {[%emt 0:01:56]} Raf8 {[%emt 0:01:16]} 26. Rc2 {[%emt 0:13:16]} g4 {[%emt 0:05:09]} 27. f4 {[%emt 0:01:12]} Ng6 {[%emt 0:01:35]} 28. Nd3 {[%emt 0:04:49]} h5 {[%emt 0:02:18]} 29. Re2 {[%emt 0:01:58]} Qe7 {[%emt 0:07:30]} 30. f5 {[%emt 0:02:02]} Nh4 {[%emt 0:00:07]} 31. Nxh3 {[%emt 0:01:47]} gxh3 {[%emt 0:00:02]} 32. Nf4 {[%emt 0:02:14]} Bh6 {[%emt 0:00:56]} 33. Bxh4 {[%emt 0:03:38]} Qxh4 {[%emt 0:00:08]} 34. Ng6 {[%emt 0:03:11]} Qg4 {[%emt 0:00:47]} 35. Qxh6 {[%emt 0:03:20]} Qf3+ {[%emt 0:00:27]} 36. Kg1 {[%emt 0:00:04]} Qg4+ {[%emt 0:00:36]} 37. Kh1 {[%emt 0:00:20]} Qf3+ {[%emt 0:00:14]} 38. Kg1 {[%emt 0:00:03]} Qg4+ {[%emt 0:00:04]} 39. Kf1 {[%emt 0:01:41]} Qf3+ {[%emt 0:02:32]} 40. Ke1 {[%emt 0:00:00]} Qh1+ {[%emt 0:00:00]} 41. Kd2 {[%emt 0:03:36]} Rd8+ {[%emt 0:03:25]} 42. Ke3 {[%emt 0:05:52]} 1-0

[Event "71st MNE-ch 2019"]
[Site "Podgorica"]
[Date "2019.05.23"]
[Round "6.3"]
[White "Sukovic, Andrej"]
[Black "Kalezic, Blazo"]
[Result "0-1"]
[ECO "B15"]
[WhiteElo "2221"]
[BlackElo "2450"]
[Annotator "RC"]
[PlyCount "100"]
[EventDate "2019.05.18"]
[EventType "swiss"]
[EventCountry "MNE"]
[SourceTitle "playchess.com"]
[Source "ChessBase"]
[SourceQuality "1"]
[TimeControl "40/5400+30:1800+30"]

1. e4 c6 {[%emt 0:09:02]} 2. Nc3 {[%emt 0:02:13]} d5 {[%emt 0:00:15]} 3. d4 {[%emt 0:00:27]} dxe4 {[%emt 0:00:12]} 4. Nxe4 {[%emt 0:00:09]} Nf6 {[%emt 0:00:07]} 5. Nxf6+ {[%emt 0:00:06]} exf6 {[%emt 0:00:11]} 6. c3 {[%emt 0:00:08]} Bd6 {[%emt 0:00:14]} 7. Bd3 {[%emt 0:00:05]} O-O {[%emt 0:00:11]} 8. Qc2 {[%emt 0:00:04]} Re8+ {[%emt 0:00:30]} 9. Be3 {[%emt 0:00:09]} h5 {[%emt 0:04:15]} 10. O-O-O {[%emt 0:01:10]} Be6 {[%emt 0:02:12]} 11. c4 {[%emt 0:08:37]} Na6 {[%emt 0:02:23]} 12. a3 {[%emt 0:00:24]} b5 {[%emt 0:02:20]} 13. c5 {[%emt 0:01:42]} Bf8 {[%emt 0:00:45]} 14. Ne2 {[%emt 0:02:50]} Nc7 {[%emt 0:06:50]} 15. Nf4 {[%emt 0:11:02]} Nd5 {[%emt 0:02:21]} 16. Nxe6 {[%emt 0:29:43]} Rxe6 {[%emt 0:00:13]} 17. Bh7+ {[%emt 0:00:05]} Kh8 {[%emt 0:00:12]} 18. Qf5 {[%emt 0:00:06]} Rxe3 {[%emt 0:10:12]} 19. fxe3 {[%emt 0:00:19]} g6 {[%emt 0:00:15]} 20. Bxg6 {[%emt 0:00:24]} fxg6 {[%emt 0:00:07]} 21. Qxg6 {[%emt 0:00:07]} Qe8 {[%emt 0:00:07]} 22. Qd3 {[%emt 0:09:18]} Qxe3+ {[%emt 0:02:54]} 23. Qxe3 {[%emt 0:02:45]} Nxe3 {[%emt 0:00:08]} 24. Rd3 {[%emt 0:00:02]} Bh6 {[%emt 0:08:15]} 25. Kb1 {[%emt 0:00:05]} Nxg2 {[%emt 0:04:25]} 26. Rf1 {[%emt 0:06:02]} Bg5 {[%emt 0:01:45]} 27. Rf5 {[%emt 0:04:59]} Nh4 {[%emt 0:02:35]} 28. Rf2 {[%emt 0:01:32]} Ng6 {[%emt 0:00:13]} 29. Rb3 {[%emt 0:01:00]} Rd8 {[%emt 0:00:52]} 30. a4 {[%emt 0:00:38]} a6 {[%emt 0:00:42]} 31. axb5 {[%emt 0:00:05]} axb5 {[%emt 0:00:05]} 32. Rd3 {[%emt 0:04:46]} Kg7 {[%emt 0:07:02]} 33. Ka2 {[%emt 0:08:47]} h4 {[%emt 0:04:41]} 34. Kb3 {[%emt 0:01:40]} Nf4 {[%emt 0:01:01]} 35. Rd1 {[%emt 0:00:43]} Kf7 {[%emt 0:02:02]} 36. Kb4 {[%emt 0:00:38]} Nd5+ {[%emt 0:00:16]} 37. Kb3 {[%emt 0:00:04]} Re8 {[%emt 0:00:08]} 38. Rf3 {[%emt 0:01:14]} Re2 {[%emt 0:01:34]} 39. h3 {[%emt 0:00:45]} Be3 {[%emt 0:01:29]} 40. Rf5 {[%emt 0:00:00]} Ke6 {[%emt 0:00:00]} 41. Rh5 {[%emt 0:02:09]} Bg5 {[%emt 0:06:25]} 42. Rh8 {[%emt 0:00:29]} Re3+ {[%emt 0:00:32]} 43. Ka2 {[%emt 0:00:07]} Rxh3 {[%emt 0:00:38]} 44. Rd8 {[%emt 0:00:08]} Bf4 {[%emt 0:02:07]} 45. Re1+ {[%emt 0:00:13]} Re3 {[%emt 0:01:29]} 46. Rxe3+ {[%emt 0:00:08]} Nxe3 {[%emt 0:01:14]} 47. Rh8 {[%emt 0:00:30]} Nf5 {[%emt 0:02:20]} 48. Rh5 {[%emt 0:00:35]} Bg5 {[%emt 0:02:12]} 49. Rh8 {[%emt 0:00:22]} Nxd4 {[%emt 0:00:28]} 50. Rd8 {[%emt 0:00:31]} Ke5 {[%emt 0:00:33]} 0-1

[Event "71st MNE-ch 2019"]
[Site "Podgorica"]
[Date "2019.05.23"]
[Round "6.6"]
[White "Lekic, Dusan"]
[Black "Vujovic, Savo"]
[Result "1/2-1/2"]
[ECO "A05"]
[WhiteElo "2352"]
[BlackElo "1940"]
[Annotator "ChessBase"]
[PlyCount "103"]
[EventDate "2019.05.18"]
[EventType "swiss"]
[EventCountry "MNE"]
[SourceTitle "playchess.com"]
[Source "ChessBase"]
[SourceQuality "1"]
[TimeControl "40/5400+30:1800+30"]

1. Nf3 {[%emt 0:00:00]} Nf6 {[%emt 0:06:08]} 2. g3 {[%emt 0:00:01]} d5 {[%emt 0:00:22]} 3. Bg2 {[%emt 0:00:07]} e6 {[%emt 0:00:18]} 4. O-O {[%emt 0:00:27]} Be7 {[%emt 0:00:14]} 5. c4 {[%emt 0:00:53]} O-O {[%emt 0:00:16]} 6. d4 {[%emt 0:00:40]} dxc4 {[%emt 0:00:09]} 7. Qc2 {[%emt 0:01:03]} b5 {[%emt 0:01:00]} 8. a4 {[%emt 0:04:19]} b4 {[%emt 0:00:21]} 9. Nfd2 {[%emt 0:01:43]} c6 {[%emt 0:00:17]} 10. Nxc4 {[%emt 0:02:22]} Qxd4 {[%emt 0:01:33]} 11. Rd1 {[%emt 0:02:04]} Qc5 {[%emt 0:00:12]} 12. Nbd2 {[%emt 0:01:01]} Rd8 {[%emt 0:10:56]} 13. b3 {[%emt 0:00:44]} Ba6 {[%emt 0:12:14]} 14. Bb2 {[%emt 0:01:17]} Qh5 {[%emt 0:03:05]} 15. Bf3 {[%emt 0:09:55]} Qh6 {[%emt 0:07:55]} 16. Na5 {[%emt 0:11:20]} Nd5 {[%emt 0:04:20]} 17. Ne4 {[%emt 0:13:08]} Rc8 {[%emt 0:07:24]} 18. Nc5 {[%emt 0:02:06]} Bd8 {[%emt 0:03:31]} 19. Nc4 {[%emt 0:05:51]} Bxc4 {[%emt 0:02:44]} 20. Qxc4 {[%emt 0:01:27]} Be7 {[%emt 0:03:44]} 21. e4 {[%emt 0:03:24]} Ne3 {[%emt 0:02:34]} 22. fxe3 {[%emt 0:03:38]} Qxe3+ {[%emt 0:00:15]} 23. Kg2 {[%emt 0:00:06]} Qxc5 {[%emt 0:03:21]} 24. Qe2 {[%emt 0:00:15]} Bg5 {[%emt 0:10:44]} 25. h4 {[%emt 0:04:38]} Bh6 {[%emt 0:04:26]} 26. Bd4 {[%emt 0:00:42]} Qe7 {[%emt 0:01:42]} 27. Be5 {[%emt 0:00:19]} a5 {[%emt 0:01:28]} 28. Rd3 {[%emt 0:06:16]} Nd7 {[%emt 0:01:40]} 29. Bd6 {[%emt 0:00:14]} Qe8 {[%emt 0:01:08]} 30. g4 {[%emt 0:01:28]} g6 {[%emt 0:00:32]} 31. Rh1 {[%emt 0:01:42]} Bf8 {[%emt 0:00:22]} 32. e5 {[%emt 0:01:33]} Nc5 {[%emt 0:00:31]} 33. Bxc5 {[%emt 0:04:51]} Bxc5 {[%emt 0:00:04]} 34. h5 {[%emt 0:00:23]} Rd8 {[%emt 0:00:51]} 35. hxg6 {[%emt 0:00:17]} fxg6 {[%emt 0:00:05]} 36. Rhd1 {[%emt 0:02:15]} Be7 {[%emt 0:02:09]} 37. Qc2 {[%emt 0:01:14]} Rac8 {[%emt 0:01:24]} 38. Qc4 {[%emt 0:00:30]} Bf8 {[%emt 0:04:16]} 39. Rxd8 {[%emt 0:00:55]} Rxd8 {[%emt 0:00:08]} 40. Bxc6 {[%emt 0:00:00]} Qe7 {[%emt 0:00:00]} 41. Rxd8 {[%emt 0:05:05]} Qxd8 {[%emt 0:00:46]} 42. Qxe6+ {[%emt 0:00:27]} Kg7 {[%emt 0:00:10]} 43. Bd5 {[%emt 0:03:50]} Qe7 {[%emt 0:00:18]} 44. Kf3 {[%emt 0:08:39]} Qxe6 {[%emt 0:02:11]} 45. Bxe6 {[%emt 0:00:03]} Be7 {[%emt 0:00:59]} 46. Ke4 {[%emt 0:00:09]} Kf8 {[%emt 0:00:48]} 47. Kd5 {[%emt 0:00:51]} h5 {[%emt 0:00:08]} 48. gxh5 {[%emt 0:00:06]} gxh5 {[%emt 0:00:04]} 49. Kc6 {[%emt 0:01:45]} h4 {[%emt 0:00:17]} 50. Kd7 {[%emt 0:00:33]} Bg5 {[%emt 0:00:10]} 51. Bh3 {[%emt 0:00:34]} Be7 {[%emt 0:00:08]} 52. e6 1/2-1/2

[Event "71st MNE-ch 2019"]
[Site "Podgorica"]
[Date "2019.05.23"]
[Round "6.14"]
[White "Rakic, Tijana"]
[Black "Sabotic, Denis"]
[Result "0-1"]
[ECO "B46"]
[WhiteElo "1579"]
[BlackElo "1682"]
[Annotator "NA RC"]
[PlyCount "50"]
[EventDate "2019.05.18"]
[EventType "swiss"]
[EventCountry "MNE"]
[SourceTitle "playchess.com"]
[Source "ChessBase"]
[SourceQuality "1"]
[TimeControl "40/5400+30:1800+30"]

1. e4 {[%emt 0:00:00]} c5 {[%emt 0:00:04]} 2. Nf3 {[%emt 0:00:04]} Nc6 {[%emt 0:00:06]} 3. d4 {[%emt 0:00:09]} cxd4 {[%emt 0:00:07]} 4. Nxd4 {[%emt 0:00:15]} e6 {[%emt 0:00:10]} 5. Nc3 {[%emt 0:00:36]} a6 {[%emt 0:00:23]} 6. Be3 {[%emt 0:00:19]} Bb4 {[%emt 0:00:27]} 7. Qd2 {[%emt 0:03:22]} Nf6 {[%emt 0:01:02]} 8. f3 {[%emt 0:02:36]} d5 {[%emt 0:01:50]} 9. Nxc6 {[%emt 0:06:51]} bxc6 {[%emt 0:01:31]} 10. e5 {[%emt 0:00:39]} Nd7 {[%emt 0:00:53]} 11. a3 {[%emt 0:01:06]} Ba5 {[%emt 0:01:56]} 12. b4 {[%emt 0:04:40]} Bb6 {[%emt 0:03:07]} 13. Bxb6 {[%emt 0:02:21]} Qxb6 {[%emt 0:01:11]} 14. f4 {[%emt 0:02:22]} Bb7 {[%emt 0:01:21]} 15. Na4 {[%emt 0:03:45]} Qc7 {[%emt 0:01:36]} 16. Qe3 {[%emt 0:07:23]} a5 {[%emt 0:01:40]} 17. Rb1 {[%emt 0:03:52]} axb4 {[%emt 0:03:43]} 18. Rxb4 {[%emt 0:09:51]} c5 {[%emt 0:00:53]} 19. Qc3 {[%emt 0:00:12]} O-O {[%emt 0:07:31]} 20. Bb5 {[%emt 0:02:17]} Rfc8 21. Bxd7 {[%emt 0:03:38]} cxb4 {[%emt 0:08:24]} 22. Qxc7 {[%emt 0:04:51]} Rxc7 {[%emt 0:00:04]} 23. axb4 {[%emt 0:01:22]} Rxd7 {[%emt 0:00:40]} 24. Nb6 {[%emt 0:00:17]} Ra1+ {[%emt 0:00:41]} 25. Kf2 {[%emt 0:00:23]} Rxh1 {[%emt 0:00:16]} 0-1